fUST/lending_fUST_20251203
["ID","MTS","AMOUNT","RATE_DAILY","PERIOD"]
[395530538,1764700285206,-635.02,0.00015068,2]
[395530540,1764700285220,-666.2,0.00015068,2]
[395530542,1764700285230,-2392.84,0.00015068,2]
[395530544,1764700285240,-4019.58,0.00015068,2]
[395530546,1764700285250,-834.95,0.00015068,2]
[395530548,1764700285259,-500.0,0.00015068,2]
[395530550,1764700285270,-1131.23,0.00015068,2]
[395530552,1764700285280,-500.0,0.00015068,2]
[395530554,1764700285290,-590.03,0.00015068,2]
[395530556,1764700285300,-500.0,0.00015068,2]
[395530559,1764700285310,-679.74,0.00015068,2]
[395530561,1764700285321,-1261.89,0.00015068,2]
[395530563,1764700285331,-1502.27,0.00015068,2]
[395530565,1764700285341,-1176.24,0.00015068,2]
[395530567,1764700285351,-708.34,0.00015068,2]
[395530569,1764700285360,-500.0,0.00015068,2]
[395530571,1764700285370,-3534.78,0.00015068,2]
[395530573,1764700285380,-1590.78,0.00015068,2]
[395530575,1764700285391,-1468.43,0.00015068,2]
[395530577,1764700285401,-1529.68,0.00015068,2]
[395530579,1764700285410,-500.0,0.00015068,2]
[395530581,1764700285420,-1389.1,0.00015068,2]
[395530583,1764700285430,-507.77372075,0.00015068,2]
[395530585,1764700285439,-1486.77,0.00015068,2]
[395530587,1764700285450,-713.64,0.00015068,2]
[395530589,1764700285461,-500.0,0.00015068,2]
[395530591,1764700285471,-2062.66,0.00015068,2]
[395530593,1764700285480,-2029.83,0.00015068,2]
[395530595,1764700285490,-1207.71,0.00015068,2]
[395530598,1764700285500,-500.0,0.00015068,2]
[395530600,1764700285509,-750.49,0.00015068,2]
[395530602,1764700285519,-913.85,0.00015068,2]
[395530604,1764700285529,-500.0,0.00015068,2]
[395530606,1764700285539,-520.63,0.00015068,2]
[395530608,1764700285549,-500.0,0.00015068,2]
[395530610,1764700285559,-709.72,0.00015068,2]
[395530612,1764700285568,-3520.43,0.00015068,2]
[395530614,1764700285579,-501.3141447,0.00015068,2]
[395530616,1764700285589,-1047.77,0.00015068,2]
[395530618,1764700285600,-4898.68,0.00015068,2]
[395530620,1764700285610,-673.82,0.00015068,2]
[395530622,1764700285620,-500.0,0.00015068,2]
[395530624,1764700285629,-500.0,0.00015068,2]
[395530626,1764700285639,-801.02,0.00015068,2]
[395530628,1764700285649,-510.14094161,0.00015068,2]
[395530630,1764700285659,-724.17,0.00015068,2]
[395530632,1764700285669,-500.0,0.00015068,2]
[395530634,1764700285679,-541.85290285,0.00015068,2]
[395530637,1764700285690,-583.23,0.00015068,2]
[395530639,1764700285701,-500.0,0.00015068,2]
[395530641,1764700285712,-500.0,0.00015068,2]
[395530643,1764700285723,-1171.68,0.00015068,2]
[395530645,1764700285734,-500.0,0.00015068,2]
[395530647,1764700285744,-402.47995516,0.00015068,2]
[395530847,1764700287780,282.6800853,9.537e-05,2]
[395530877,1764700288070,300.62122042,9.415e-05,2]
[395530935,1764700288652,300.62122042,9.321e-05,2]
[395530980,1764700289076,844.39738945,9.537e-05,2]
[395531093,1764700290557,1005.55905355,9.537e-05,2]
[395531112,1764700290739,201.9954862,0.00010704,2]
[395532844,1764700361907,300.79069106,9.415e-05,2]
[395532845,1764700361981,283.0606436,9.537e-05,2]
[395532847,1764700379974,803.56356735,0.00010491,2]
[395532848,1764700402120,803.56356735,0.00010491,2]
[395532849,1764700424114,803.56356735,0.00010491,2]
[395532850,1764700445970,803.56356735,0.00010491,2]
[395532851,1764700454899,803.56356735,0.00010491,2]
[395532852,1764700470179,398.33082859,0.00010491,2]
[395532883,1764700509499,756.39977199,9.415e-05,2]
[395532896,1764700623076,250.0,0.0002,30]
[395532933,1764700660912,405.23273876,0.00010179,2]
[395532934,1764700669607,405.23273876,0.00010179,2]
[395532940,1764700685891,405.23273876,0.00010179,2]
[395532964,1764700693692,405.23273876,0.00010179,2]
[395532975,1764700702397,405.23273876,0.00010179,2]
[395532997,1764700710120,352.96097359,0.00010231,2]
[395533009,1764700718297,352.96097359,0.00010231,2]
[395533021,1764700726092,352.96097359,0.00010231,2]
[395533048,1764700734331,352.96097359,0.00010231,2]
[395533057,1764700742322,352.96097359,0.00010231,2]
[395533067,1764700750373,352.96097359,0.00010231,2]
[395533068,1764700758144,99.67069267,0.00010231,2]
[395533070,1764700800445,907.80072616,9.415e-05,2]
[395533082,1764700813056,164.0,0.0001938,120]
[395533095,1764700814424,164.0,0.00020349,120]
[395533125,1764700834466,172.0,0.00018487,120]
[395533126,1764700835963,172.0,0.00019411,120]
[395533127,1764700837329,172.0,0.00020382,120]
[395533134,1764700846203,1146.31219528,9.537e-05,2]
[395533289,1764700966639,485.29028092,9.731e-05,2]
[395533301,1764700988212,485.29028092,9.731e-05,2]
[395533302,1764701009881,485.29028092,9.731e-05,2]
[395533362,1764701032155,485.29028092,9.731e-05,2]
[395533363,1764701054664,485.29028092,9.731e-05,2]
[395533364,1764701076169,485.29028092,9.731e-05,2]
[395533365,1764701097852,485.29028092,9.731e-05,2]
[395533370,1764701109549,164.0,0.00019583,120]
[395533371,1764701111061,164.0,0.00020562,120]
[395533375,1764701120480,485.29028092,9.731e-05,2]
[395533384,1764701140307,1031.80705748,9.537e-05,2]
[395533385,1764701142084,485.29028092,9.731e-05,2]
[395533386,1764701150093,485.29028092,9.731e-05,2]
[395533387,1764701166231,352.96097359,9.682e-05,2]
[395533388,1764701174215,352.96097359,9.682e-05,2]
[395533389,1764701189259,352.96097359,9.682e-05,2]
[395533390,1764701196739,352.96097359,9.682e-05,2]
[395533391,1764701212502,352.96097359,9.682e-05,2]
[395533392,1764701220787,352.96097359,9.682e-05,2]
[395533393,1764701235979,352.96097359,9.682e-05,2]
[395533394,1764701243763,352.96097359,9.682e-05,2]
[395533395,1764701258998,352.96097359,9.682e-05,2]
[395533396,1764701267499,352.96097359,9.682e-05,2]
[395533406,1764701283726,352.96097359,9.682e-05,2]
[395533409,1764701291637,352.96097359,9.682e-05,2]
[395533410,1764701306638,352.96097359,9.682e-05,2]
[395533411,1764701314875,352.96097359,9.682e-05,2]
[395533412,1764701330232,352.96097359,9.682e-05,2]
[395533413,1764701337980,352.96097359,9.682e-05,2]
[395533414,1764701346332,352.96097359,9.682e-05,2]
[395533489,1764701362566,352.96097359,9.682e-05,2]
[395533491,1764701370725,352.96097359,9.682e-05,2]
[395533492,1764701385693,352.96097359,9.682e-05,2]
[395533494,1764701394206,352.96097359,9.682e-05,2]
[395533495,1764701410354,582.96097359,9.682e-05,2]
[395533496,1764701418040,582.96097359,9.682e-05,2]
[395533515,1764701432559,-352.96097359,9.78e-05,2]
[395533516,1764701432570,-2.37850855,9.78e-05,2]
[395533521,1764701432641,582.96097359,9.682e-05,2]
[395533606,1764701438791,-227.62149145,9.78e-05,2]
[395533607,1764701438802,-352.96097359,9.879e-05,2]
[395533609,1764701438812,-1031.80705748,0.00010569,2]
[395533611,1764701438822,-1492.3923354,0.00010804,2]
[395533613,1764701438831,-500.0,0.00011093,2]
[395533615,1764701438840,-500.0,0.00011093,2]
[395533617,1764701438850,-211.53087946,0.00011093,2]
[395533619,1764701438859,-500.0,0.00011093,2]
[395533621,1764701438869,-500.0,0.00011093,2]
[395533623,1764701438879,-500.0,0.00011093,2]
[395533625,1764701438888,-500.0,0.00011093,2]
[395533627,1764701438898,-500.0,0.00011093,2]
[395533629,1764701438909,-500.0,0.00011093,2]
[395533631,1764701438919,-500.0,0.00011093,2]
[395533633,1764701438929,-500.0,0.00011093,2]
[395533635,1764701438939,-500.0,0.00011093,2]
[395533637,1764701438948,-500.0,0.00011093,2]
[395533639,1764701438959,-608.906489,0.00011093,2]
[395533641,1764701438968,-500.0,0.00011093,2]
[395533643,1764701438978,-500.0,0.00011093,2]
[395533645,1764701438986,-500.0,0.00011093,2]
[395533646,1764701438996,-500.0,0.00011093,2]
[395533648,1764701439006,-500.0,0.00011093,2]
[395533650,1764701439016,-500.0,0.00011093,2]
[395533652,1764701439032,-500.0,0.00011093,2]
[395533654,1764701439041,-500.0,0.00011093,2]
[395533656,1764701439051,-500.0,0.00011093,2]
[395533658,1764701439062,-500.0,0.00011093,2]
[395533660,1764701439072,-500.0,0.00011093,2]
[395533662,1764701439082,-500.0,0.00011093,2]
[395533664,1764701439092,-500.0,0.00011093,2]
[395533666,1764701439102,-500.0,0.00011093,2]
[395533668,1764701439113,-500.0,0.00011093,2]
[395533670,1764701439123,-500.0,0.00011093,2]
[395533672,1764701439132,-500.0,0.00011093,2]
[395533674,1764701439142,-300.0,0.00011093,2]
[395533676,1764701439152,-500.0,0.00011093,2]
[395533678,1764701439161,-500.0,0.00011093,2]
[395533680,1764701439170,-500.0,0.00011093,2]
[395533682,1764701439179,-500.0,0.00011093,2]
[395533684,1764701439189,-500.0,0.00011093,2]
[395533685,1764701439198,-500.0,0.00011093,2]
[395533687,1764701439208,-446.72132688,0.00011093,2]
[395533689,1764701439218,-500.0,0.00011093,2]
[395533691,1764701439227,-500.0,0.00011093,2]
[395533693,1764701439236,-500.0,0.00011093,2]
[395533695,1764701439245,-500.0,0.00011093,2]
[395533696,1764701439254,-500.0,0.00011093,2]
[395533697,1764701439263,-500.0,0.00011093,2]
[395533698,1764701439272,-500.0,0.00011093,2]
[395533699,1764701439283,-500.0,0.00011093,2]
[395533700,1764701439292,-520.40991646,0.00011093,2]
[395533701,1764701439301,-500.0,0.00011093,2]
[395533702,1764701439311,-500.0,0.00011093,2]
[395533703,1764701439321,-500.0,0.00011093,2]
[395533704,1764701439330,-500.0,0.00011093,2]
[395533705,1764701439340,-300.0,0.00011093,2]
[395533706,1764701439349,-43398.81820323,0.00011094,2]
[395533707,1764701439361,-316.1867,0.00011094,2]
[395533708,1764701439395,-3266.48255733,0.00011094,2]
[395533709,1764701439405,-178.14,0.00011099,2]
[395533710,1764701439414,-178.14,0.00011099,2]
[395533711,1764701439423,-178.14,0.00011099,2]
[395533712,1764701439432,-500.0,0.00011099,2]
[395533713,1764701439442,-364.314,0.00011099,2]
[395533714,1764701439451,-160.0,0.00011446,2]
[395533715,1764701439462,-346.93136212,0.00011447,2]
[395533716,1764701439471,-416.49394884,0.00011879,2]
[395533717,1764701439481,-420.0,0.00012189,2]
[395533718,1764701439491,-201.93286099,0.00012857,2]
[395533719,1764701439503,-283.10377837,0.00012857,2]
[395533720,1764701439512,-267.82054473,0.00012975,7]
[395533721,1764701439522,-500.0,0.00013273,2]
[395533722,1764701439531,-500.0,0.00013273,2]
[395533723,1764701439542,-500.0,0.00013273,2]
[395533724,1764701439551,-500.0,0.00013273,2]
[395533725,1764701439560,-500.0,0.00013273,2]
[395533726,1764701439570,-397.0957897,0.00013288,2]
[395533727,1764701439580,-397.0957897,0.00013288,2]
[395533728,1764701439589,-397.0957897,0.00013288,2]
[395533729,1764701439598,-587.0,0.00013393,2]
[395533730,1764701439608,-195.85721018,0.000134,2]
[395533731,1764701439618,-209.40437684,0.00013405,2]
[395533732,1764701439628,-151.0,0.000135,2]
[395533733,1764701439638,-151.0,0.000135,2]
[395533734,1764701439647,-300.0,0.00013573,2]
[395533735,1764701439657,-157.82,0.00013573,2]
[395533736,1764701439667,-157.82,0.00013573,2]
[395533737,1764701439676,-157.82,0.00013573,2]
[395533738,1764701439685,-157.82,0.00013573,2]
[395533739,1764701439695,-157.82,0.00013573,2]
[395533740,1764701439704,-157.83,0.00013573,2]
[395533741,1764701439714,-500.0,0.00013597,2]
[395533742,1764701439724,-151.0,0.000136,2]
[395533743,1764701439734,-151.0,0.000136,2]
[395533744,1764701439743,-151.0,0.000136,2]
[395533745,1764701439753,-151.0,0.000136,2]
[395533747,1764701439763,-151.0,0.000136,2]
[395533748,1764701439773,-300.0,0.00013673,2]
[395533750,1764701439782,-500.0,0.00013698,2]
[395533752,1764701439793,-500.0,0.00013698,2]
[395533754,1764701439802,-500.0,0.00013698,2]
[395533756,1764701439811,-500.0,0.00013698,2]
[395533758,1764701439821,-500.0,0.00013698,2]
[395533760,1764701439830,-500.0,0.00013698,2]
[395533761,1764701439840,-500.0,0.00013698,2]
[395533763,1764701439851,-500.0,0.00013698,2]
[395533765,1764701439860,-547.42826263,0.00013698,2]
[395533767,1764701439869,-500.0,0.00013698,2]
[395533769,1764701439879,-500.0,0.00013698,2]
[395533771,1764701439888,-500.0,0.00013698,2]
[395533773,1764701439897,-500.0,0.00013698,2]
[395533775,1764701439906,-500.0,0.00013698,2]
[395533777,1764701439915,-500.0,0.00013698,2]
[395533778,1764701439927,-500.0,0.00013698,2]
[395533781,1764701439936,-500.0,0.00013698,2]
[395533782,1764701439946,-500.0,0.00013698,2]
[395533784,1764701439955,-500.0,0.00013698,2]
[395533786,1764701439967,-430.29903813,0.00013698,2]
[395533788,1764701439976,-500.0,0.00013698,2]
[395533790,1764701439985,-500.0,0.00013698,2]
[395533792,1764701439995,-500.0,0.00013698,2]
[395533795,1764701440005,-500.0,0.00013698,2]
[395533798,1764701440014,-500.0,0.00013698,2]
[395533800,1764701440023,-500.0,0.00013698,2]
[395533802,1764701440032,-500.0,0.00013698,2]
[395533804,1764701440042,-500.0,0.00013698,2]
[395533806,1764701440051,-1251.48,0.00013698,2]
[395533809,1764701440060,-500.0,0.00013698,2]
[395533810,1764701440069,-500.0,0.00013698,2]
[395533812,1764701440079,-787.67,0.00013698,2]
[395533814,1764701440088,-500.0,0.00013698,2]
[395533816,1764701440098,-500.0,0.00013698,2]
[395533818,1764701440107,-269.61036481,0.00013698,2]
[395533820,1764701440117,-500.0,0.00013698,2]
[395533822,1764701440126,-500.0,0.00013698,2]
[395533824,1764701440135,-500.0,0.00013698,2]
[395533826,1764701440145,-500.0,0.00013698,2]
[395533828,1764701440155,-500.0,0.00013698,2]
[395533830,1764701440165,-500.0,0.00013698,2]
[395533832,1764701440175,-500.0,0.00013698,2]
[395533834,1764701440184,-500.0,0.00013698,2]
[395533835,1764701440193,-500.0,0.00013698,2]
[395533837,1764701440203,-500.0,0.00013698,2]
[395533839,1764701440215,-500.0,0.00013698,2]
[395533841,1764701440225,-500.0,0.00013698,2]
[395533843,1764701440235,-500.0,0.00013698,2]
[395533845,1764701440244,-604.08483349,0.00013698,2]
[395533847,1764701440253,-500.0,0.00013698,2]
[395533849,1764701440264,-500.0,0.00013698,2]
[395533851,1764701440274,-500.0,0.00013698,2]
[395533853,1764701440284,-500.0,0.00013698,2]
[395533855,1764701440293,-500.0,0.00013698,2]
[395533857,1764701440302,-500.0,0.00013698,2]
[395533859,1764701440312,-500.0,0.00013698,2]
[395533861,1764701440321,-566.66,0.00013698,2]
[395533863,1764701440331,-500.0,0.00013698,2]
[395533864,1764701440340,-500.0,0.00013698,2]
[395533866,1764701440349,-500.0,0.00013698,2]
[395533868,1764701440358,-667.44,0.00013698,2]
[395533870,1764701440368,-500.0,0.00013698,2]
[395533872,1764701440378,-500.0,0.00013698,2]
[395533874,1764701440388,-500.0,0.00013698,2]
[395533876,1764701440397,-498.3309567,0.00013698,2]
[395533878,1764701440406,-500.0,0.00013698,2]
[395533880,1764701440415,-500.0,0.00013698,2]
[395533882,1764701440424,-500.0,0.00013698,2]
[395533884,1764701440435,-500.0,0.00013698,2]
[395533886,1764701440443,-500.0,0.00013698,2]
[395533888,1764701440453,-613.85505555,0.00013698,2]
[395533889,1764701440464,-500.0,0.00013698,2]
[395533891,1764701440473,-500.0,0.00013698,2]
[395533893,1764701440483,-500.0,0.00013698,2]
[395533895,1764701440495,-500.0,0.00013698,2]
[395533897,1764701440504,-500.0,0.00013698,2]
[395533899,1764701440514,-763.22,0.00013698,2]
[395533901,1764701440523,-500.0,0.00013698,2]
[395533903,1764701440533,-500.0,0.00013698,2]
[395533905,1764701440542,-500.0,0.00013698,2]
[395533907,1764701440552,-502.74521608,0.00013698,2]
[395533909,1764701440561,-500.0,0.00013698,2]
[395533911,1764701440572,-868.63,0.00013698,2]
[395533913,1764701440582,-500.0,0.00013698,2]
[395533915,1764701440591,-1388.72,0.00013698,2]
[395533917,1764701440600,-1031.92,0.00013698,2]
[395533919,1764701440610,-500.0,0.00013698,2]
[395533921,1764701440620,-675.84,0.00013698,2]
[395533923,1764701440629,-500.0,0.00013698,2]
[395533925,1764701440641,-500.0,0.00013698,2]
[395533927,1764701440650,-500.0,0.00013698,2]
[395533929,1764701440660,-500.0,0.00013698,2]
[395533931,1764701440669,-500.0,0.00013698,2]
[395533932,1764701440679,-500.0,0.00013698,2]
[395533934,1764701440688,-500.0,0.00013698,2]
[395533936,1764701440698,-500.0,0.00013698,2]
[395533938,1764701440707,-500.0,0.00013698,2]
[395533940,1764701440716,-926.04,0.00013698,2]
[395533942,1764701440726,-1331.59,0.00013698,2]
[395533944,1764701440735,-500.0,0.00013698,2]
[395533946,1764701440744,-500.0,0.00013698,2]
[395533948,1764701440754,-500.0,0.00013698,2]
[395533950,1764701440763,-500.0,0.00013698,2]
[395533952,1764701440773,-1038.51,0.00013698,2]
[395533953,1764701440782,-500.0,0.00013698,2]
[395533956,1764701440792,-500.0,0.00013698,2]
[395533957,1764701440801,-500.0,0.00013698,2]
[395533960,1764701440811,-500.0,0.00013698,2]
[395533961,1764701440820,-505.95,0.00013698,2]
[395533963,1764701440830,-500.0,0.00013698,2]
[395533965,1764701440840,-500.0,0.00013698,2]
[395533967,1764701440850,-500.0,0.00013698,2]
[395533969,1764701440859,-590.43,0.00013698,2]
[395533971,1764701440869,-500.0,0.00013698,2]
[395533973,1764701440878,-500.0,0.00013698,2]
[395533975,1764701440888,-500.0,0.00013698,2]
[395533977,1764701440898,-502.17554804,0.00013698,2]
[395533979,1764701440907,-500.0,0.00013698,2]
[395533981,1764701440917,-500.0,0.00013698,2]
[395533983,1764701440927,-501.16370348,0.00013698,2]
[395533985,1764701440937,-500.0,0.00013698,2]
[395533987,1764701440947,-500.0,0.00013698,2]
[395533989,1764701440957,-905.3,0.00013698,2]
[395533991,1764701440966,-500.0,0.00013698,2]
[395533992,1764701440976,-417.61649316,0.00013698,2]
[395533995,1764701440986,-501.58475446,0.00013698,2]
[395533996,1764701440996,-500.0,0.00013698,2]
[395533998,1764701441006,-512.24,0.00013698,2]
[395534000,1764701441015,-500.0,0.00013698,2]
[395534002,1764701441025,-500.0,0.00013698,2]
[395534004,1764701441035,-500.0,0.00013698,2]
[395534006,1764701441048,-500.0,0.00013698,2]
[395534008,1764701441058,-500.0,0.00013698,2]
[395534010,1764701441067,-500.97778789,0.00013698,2]
[395534013,1764701441076,-500.0,0.00013698,2]
[395534015,1764701441085,-500.0,0.00013698,2]
[395534017,1764701441095,-500.0,0.00013698,2]
[395534019,1764701441104,-500.64989312,0.00013698,2]
[395534021,1764701441113,-500.0,0.00013698,2]
[395534023,1764701441123,-500.0,0.00013698,2]
[395534025,1764701441132,-500.0,0.00013698,2]
[395534027,1764701441141,-500.0,0.00013698,2]
[395534029,1764701441150,-500.0,0.00013698,2]
[395534031,1764701441159,-500.0,0.00013698,2]
[395534033,1764701441169,-975.45,0.00013698,2]
[395534035,1764701441179,-500.0,0.00013698,2]
[395534037,1764701441188,-500.0,0.00013698,2]
[395534039,1764701441199,-500.0,0.00013698,2]
[395534041,1764701441208,-500.0,0.00013698,2]
[395534043,1764701441217,-500.0,0.00013698,2]
[395534045,1764701441227,-500.0,0.00013698,2]
[395534047,1764701441236,-905.78,0.00013698,2]
[395534049,1764701441245,-500.0,0.00013698,2]
[395534050,1764701441255,-500.0,0.00013698,2]
[395534052,1764701441264,-500.0,0.00013698,2]
[395534054,1764701441273,-500.0,0.00013698,2]
[395534056,1764701441282,-500.0,0.00013698,2]
[395534058,1764701441292,-500.0,0.00013698,2]
[395534060,1764701441300,-500.83217813,0.00013698,2]
[395534062,1764701441310,-848.42,0.00013698,2]
[395534064,1764701441319,-1006.44,0.00013698,2]
[395534066,1764701441328,-992.54,0.00013698,2]
[395534068,1764701441338,-530.15,0.00013698,2]
[395534070,1764701441347,-504.57390477,0.00013698,2]
[395534072,1764701441356,-500.0,0.00013698,2]
[395534074,1764701441366,-500.0,0.00013698,2]
[395534076,1764701441375,-500.0,0.00013698,2]
[395534078,1764701441384,-500.0,0.00013698,2]
[395534080,1764701441394,-500.0,0.00013698,2]
[395534082,1764701441403,-500.0,0.00013698,2]
[395534084,1764701441412,-910.66,0.00013698,2]
[395534086,1764701441422,-500.0,0.00013698,2]
[395534088,1764701441431,-500.0,0.00013698,2]
[395534090,1764701441440,-500.0,0.00013698,2]
[395534092,1764701441449,-502.40242445,0.00013698,2]
[395534094,1764701441459,-500.0,0.00013698,2]
[395534095,1764701441469,-500.0,0.00013698,2]
[395534097,1764701441478,-590.5694871,0.00013698,2]
[395534099,1764701441488,-500.0,0.00013698,2]
[395534101,1764701441498,-609.08510682,0.00013698,2]
[395534103,1764701441509,-1081.44,0.00013698,2]
[395534105,1764701441520,-583.7,0.00013698,2]
[395534107,1764701441535,-446.81239469,0.00013698,2]
[395534109,1764701441548,-500.0,0.00013698,2]
[395534111,1764701441560,-961.54,0.00013698,2]
[395534113,1764701441570,-780.07,0.00013698,2]
[395534115,1764701441582,-500.0,0.00013698,2]
[395534117,1764701441593,-500.0,0.00013698,2]
[395534119,1764701441602,-317.65015017,0.00013698,2]
[395534121,1764701441612,-500.0,0.00013698,2]
[395534123,1764701441621,-500.0,0.00013698,2]
[395534125,1764701441631,-826.74,0.00013698,2]
[395534127,1764701441642,-500.0,0.00013698,2]
[395534129,1764701441651,-967.26,0.00013698,2]
[395534131,1764701441661,-500.0,0.00013698,2]
[395534133,1764701441671,-1473.35,0.00013698,2]
[395534135,1764701441682,-793.11,0.00013698,2]
[395534137,1764701441692,-500.0,0.00013698,2]
[395534139,1764701441701,-500.0,0.00013698,2]
[395534141,1764701441711,-520.17900789,0.00013698,2]
[395534143,1764701441720,-500.0,0.00013698,2]
[395534144,1764701441730,-500.0,0.00013698,2]
[395534146,1764701441739,-1626.65,0.00013698,2]
[395534148,1764701441748,-500.0,0.00013698,2]
[395534150,1764701441759,-540.24,0.00013698,2]
[395534152,1764701441769,-500.0,0.00013698,2]
[395534155,1764701441779,-500.0,0.00013698,2]
[395534156,1764701441788,-548.91,0.00013698,2]
[395534158,1764701441799,-793.11,0.00013698,2]
[395534160,1764701441808,-500.0,0.00013698,2]
[395534163,1764701441818,-500.0,0.00013698,2]
[395534164,1764701441827,-531.12,0.00013698,2]
[395534166,1764701441838,-500.0,0.00013698,2]
[395534168,1764701441848,-1397.27,0.00013698,2]
[395534170,1764701441857,-500.0,0.00013698,2]
[395534172,1764701441866,-500.0,0.00013698,2]
[395534174,1764701441876,-500.0,0.00013698,2]
[395534176,1764701441885,-500.0,0.00013698,2]
[395534178,1764701441895,-777.49,0.00013698,2]
[395534180,1764701441904,-500.0,0.00013698,2]
[395534182,1764701441914,-500.0,0.00013698,2]
[395534184,1764701441925,-500.0,0.00013698,2]
[395534186,1764701441934,-569.03,0.00013698,2]
[395534188,1764701441943,-500.0,0.00013698,2]
[395534190,1764701441954,-500.0,0.00013698,2]
[395534192,1764701441965,-699.74,0.00013698,2]
[395534194,1764701441975,-500.0,0.00013698,2]
[395534196,1764701441984,-500.0,0.00013698,2]
[395534198,1764701441993,-500.0,0.00013698,2]
[395534200,1764701442003,-532.86,0.00013698,2]
[395534202,1764701442012,-500.0,0.00013698,2]
[395534204,1764701442022,-500.0,0.00013698,2]
[395534206,1764701442031,-500.0,0.00013698,2]
[395534208,1764701442040,-507.01573663,0.00013698,2]
[395534210,1764701442050,-654.3,0.00013698,2]
[395534212,1764701442062,-884.59,0.00013698,2]
[395534214,1764701442071,-1089.58,0.00013698,2]
[395534216,1764701442080,-190.80069023,0.00013698,2]
[395534218,1764701442090,-500.0,0.00013698,2]
[395534220,1764701442099,-525.19829872,0.00013698,2]
[395534222,1764701442108,-500.0,0.00013698,2]
[395534224,1764701442118,-500.0,0.00013698,2]
[395534226,1764701442128,-936.38,0.00013698,2]
[395534228,1764701442137,-659.61,0.00013698,2]
[395534230,1764701442147,-500.0,0.00013698,2]
[395534232,1764701442156,-500.0,0.00013698,2]
[395534234,1764701442165,-500.0,0.00013698,2]
[395534235,1764701442174,-500.0,0.00013698,2]
[395534237,1764701442183,-500.0,0.00013698,2]
[395534239,1764701442192,-535.11,0.00013698,2]
[395534241,1764701442201,-500.0,0.00013698,2]
[395534243,1764701442211,-500.0,0.00013698,2]
[395534245,1764701442221,-500.0,0.00013698,2]
[395534247,1764701442231,-586.89,0.00013698,2]
[395534249,1764701442240,-500.0,0.00013698,2]
[395534251,1764701442250,-500.0,0.00013698,2]
[395534253,1764701442259,-500.0,0.00013698,2]
[395534255,1764701442269,-500.0,0.00013698,2]
[395534257,1764701442278,-334.14,0.00013698,2]
[395534259,1764701442288,-500.0,0.00013698,2]
[395534261,1764701442297,-500.0,0.00013698,2]
[395534263,1764701442307,-579.08,0.00013698,2]
[395534265,1764701442316,-500.0,0.00013698,2]
[395534267,1764701442326,-500.0,0.00013698,2]
[395534269,1764701442334,-500.0,0.00013698,2]
[395534271,1764701442344,-500.0,0.00013698,2]
[395534273,1764701442354,-561.89,0.00013698,2]
[395534275,1764701442363,-609.56,0.00013698,2]
[395534277,1764701442373,-500.0,0.00013698,2]
[395534279,1764701442382,-500.0,0.00013698,2]
[395534281,1764701442391,-686.58,0.00013698,2]
[395534283,1764701442400,-1077.15,0.00013698,2]
[395534285,1764701442410,-500.0,0.00013698,2]